bitfinex-derivatives/quotes_BTCF0:USTF0_20250720
["timestamp","ask_amount","ask_price","bid_price","bid_amount"]
[1753017999602,0.49610639,118200.0,118190.0,1.09166711]
[1753017999904,0.65851718,118200.0,118190.0,1.09166711]
[1753018000113,0.66434718,118200.0,118190.0,1.09166711]
[1753018001204,0.70250718,118200.0,118190.0,0.73086711]
[1753018003406,0.70250718,118200.0,118190.0,0.67032469]
[1753018005309,0.70250718,118200.0,118190.0,0.5079139]
[1753018005612,0.70250718,118200.0,118190.0,0.67032469]
[1753018005810,1.06330718,118200.0,118190.0,0.67032469]
[1753018006711,0.70250718,118200.0,118190.0,0.67032469]
[1753018007011,1.06330718,118200.0,118190.0,0.67032469]
[1753018007808,1.06330718,118200.0,118190.0,0.5079139]
[1753018008014,1.09174718,118200.0,118190.0,0.5079139]
[1753018008214,0.74251718,118200.0,118190.0,0.926354]
[1753018008414,0.74251718,118200.0,118190.0,1.0955139]
[1753018010718,0.74251718,118200.0,118190.0,0.926354]
[1753018011018,1.10331718,118200.0,118190.0,0.926354]
[1753018011717,0.74251718,118200.0,118190.0,0.926354]
[1753018012916,1.10331718,118200.0,118190.0,0.926354]
[1753018013819,0.74251718,118200.0,118190.0,0.926354]
[1753018014213,1.10331718,118200.0,118190.0,0.926354]
[1753018017423,0.74251718,118200.0,118190.0,0.926354]
[1753018019025,1.10331718,118200.0,118190.0,0.926354]
[1753018019923,0.7669256,118200.0,118190.0,1.08876479]
[1753018020129,0.49610639,118200.0,118190.0,1.08876479]
[1753018020626,0.3336956,118200.0,118190.0,1.25792469]
[1753018020827,0.49610639,118200.0,118190.0,1.08876479]
[1753018023026,0.66402718,118200.0,118190.0,0.926354]
[1753018023232,0.66402718,118200.0,118190.0,1.08876479]
[1753018023424,0.51944853,118200.0,118190.0,0.50116479]
[1753018023625,0.51944853,118200.0,118190.0,1.08864479]
[1753018023823,0.68185932,118200.0,118190.0,1.08864479]
[1753018024328,0.71952932,118200.0,118190.0,1.08864479]
[1753018024729,0.71952932,118200.0,118190.0,0.50116479]
[1753018024931,0.71952932,118200.0,118190.0,1.08864479]
[1753018025226,0.39470774,118200.0,118190.0,1.08864479]
[1753018025528,1.08032932,118200.0,118190.0,0.926234]
[1753018026625,0.71952932,118200.0,118190.0,0.926234]
[1753018027328,1.11766932,118200.0,118190.0,0.926234]
[1753018027729,0.75686932,118200.0,118190.0,0.926234]
[1753018028326,1.11766932,118200.0,118190.0,0.926234]
[1753018028731,1.09983718,118200.0,118190.0,0.926234]
[1753018029031,1.09983718,118200.0,118190.0,0.926154]
[1753018029630,0.73903718,118200.0,118190.0,0.926154]
[1753018032034,1.09983718,118200.0,118190.0,0.926154]
[1753018032937,0.7750156,118200.0,118190.0,0.926154]
[1753018033131,0.73903718,118200.0,118190.0,0.926154]
[1753018033533,0.73903718,118200.0,118190.0,0.926114]
[1753018034036,1.09983718,118200.0,118190.0,0.926114]
[1753018034940,0.73903718,118200.0,118190.0,0.926114]
[1753018035138,0.45355639,118200.0,118190.0,1.25768469]
[1753018035333,0.2911456,118200.0,118190.0,1.08852479]
[1753018035539,0.45355639,118200.0,118190.0,1.25768469]
[1753018035731,0.45355639,118200.0,118190.0,0.926114]
[1753018036031,0.45355639,118200.0,118190.0,1.08852479]
[1753018036438,0.45355639,118200.0,118190.0,1.25768469]
[1753018036832,0.47874639,118200.0,118190.0,1.08852479]
[1753018037138,0.49803639,118200.0,118190.0,1.25768469]
[1753018038137,0.66044718,118200.0,118190.0,1.25768469]
[1753018038339,1.02124718,118200.0,118190.0,1.25768469]
[1753018038542,1.02124718,118200.0,118190.0,1.0952739]
[1753018038740,1.02124718,118200.0,118190.0,1.25768469]
[1753018038932,0.49803639,118200.0,118190.0,1.25768469]
[1753018039133,0.85883639,118200.0,118190.0,1.25768469]
[1753018039334,0.85883639,118200.0,118190.0,1.31822711]
[1753018039640,0.86434639,118200.0,118190.0,1.31822711]
[1753018041742,0.86434639,118200.0,118190.0,1.25768469]
[1753018043344,0.50354639,118200.0,118190.0,1.25768469]
[1753018043639,0.86434639,118200.0,118190.0,1.25768469]
[1753018045541,0.50354639,118200.0,118190.0,1.25768469]
[1753018046242,0.47284639,118200.0,118190.0,1.25768469]
[1753018046542,0.45355639,118200.0,118190.0,1.25768469]
[1753018048340,0.2911456,118200.0,118190.0,1.42009548]
[1753018048541,0.2911456,118200.0,118190.0,1.67902711]
[1753018050946,0.2911456,118200.0,118190.0,1.61848469]
[1753018051541,0.2911456,118200.0,118190.0,1.67907967]
[1753018051735,0.2911456,118200.0,118190.0,1.61848469]
[1753018052248,0.2911456,118200.0,118190.0,1.67907884]
[1753018054047,0.2911456,118200.0,118190.0,1.84148963]
[1753018054248,0.2911456,118200.0,118190.0,1.67907884]
[1753018059155,0.2911456,118200.0,118190.0,1.51666805]
[1753018059358,0.2911456,118200.0,118190.0,1.67907884]
[1753018060556,0.2911456,118200.0,118190.0,1.51666805]
[1753018060755,0.45355639,118200.0,118190.0,1.67907884]
[1753018062049,0.45355639,118200.0,118190.0,1.51666805]
[1753018062247,0.2911456,118200.0,118190.0,1.51666805]
[1753018062455,0.45355639,118200.0,118190.0,1.67907884]
[1753018063156,0.2911456,118200.0,118190.0,1.67907884]
[1753018063357,0.45355639,118200.0,118190.0,1.67907884]
[1753018063560,0.45355639,118200.0,118190.0,1.51666805]
[1753018063854,0.45355639,118200.0,118190.0,1.67907884]
[1753018064160,0.2911456,118200.0,118190.0,1.51666805]
[1753018064351,0.45355639,118200.0,118190.0,1.67907884]
[1753018064550,0.45355639,118200.0,118190.0,1.51666805]
[1753018064750,0.45355639,118200.0,118190.0,1.67907884]
[1753018067661,0.45355639,118200.0,118190.0,1.51666805]
[1753018067860,0.45355639,118200.0,118190.0,1.67907884]
[1753018068960,0.45355639,118200.0,118190.0,1.51666805]
[1753018069156,0.45355639,118200.0,118190.0,1.67907884]
[1753018070466,0.45355639,118200.0,118190.0,1.51666805]
[1753018070852,0.45355639,118200.0,118190.0,1.67907884]
[1753018071550,0.45355639,118200.0,118190.0,1.51666805]
[1753018071751,0.45355639,118200.0,118190.0,1.67907884]
[1753018071960,0.2911456,118200.0,118190.0,1.67907884]
[1753018072263,0.45355639,118200.0,118190.0,1.67907884]
[1753018073463,0.45355639,118200.0,118190.0,1.51666805]
[1753018073662,0.45355639,118200.0,118190.0,1.67907884]
[1753018074555,0.2911456,118200.0,118190.0,1.67907884]
[1753018075056,0.2911456,118200.0,118190.0,1.84148963]
[1753018075258,0.4114057,118220.0,118210.0,0.2166313]
[1753018075456,0.49381649,118220.0,118210.0,1.40081209]
[1753018076460,0.49581649,118220.0,118210.0,1.40081209]
[1753018076662,0.49981649,118220.0,118210.0,1.39881209]
[1753018076862,0.3374057,118220.0,118210.0,1.39881209]
[1753018077258,0.3374057,118220.0,118210.0,1.2364013]
[1753018077458,0.3374057,118220.0,118210.0,1.39881209]
[1753018077653,0.3374057,118220.0,118210.0,1.2364013]
[1753018077866,0.3374057,118220.0,118210.0,1.39881209]
[1753018078065,0.3374057,118220.0,118210.0,1.46590302]
[1753018078866,0.49981649,118220.0,118210.0,1.46590302]
[1753018079266,0.49981649,118220.0,118210.0,1.30349223]
[1753018079768,0.3374057,118220.0,118210.0,1.46590302]
[1753018080266,0.3374057,118220.0,118210.0,1.67725702]
[1753018080466,0.2951169,118220.0,118210.0,1.57543023]
[1753018080667,0.2951169,118220.0,118210.0,1.73784102]
[1753018081166,0.2951169,118220.0,118210.0,2.09864102]
[1753018084873,0.2951169,118220.0,118210.0,1.73784102]
[1753018085368,0.2951169,118220.0,118210.0,1.57543023]
[1753018085567,0.2951169,118220.0,118210.0,1.73784102]
[1753018087278,0.126,118220.0,118210.0,1.73784102]
[1753018087466,0.126,118220.0,118210.0,1.57543023]
[1753018087774,0.2951169,118220.0,118210.0,1.73784102]
[1753018098393,0.45752769,118220.0,118210.0,1.73784102]
[1753018098595,0.2951169,118220.0,118210.0,1.73784102]
[1753018098789,0.45752769,118220.0,118210.0,1.73784102]
[1753018102895,0.45752769,118220.0,118210.0,1.57543023]
[1753018103093,0.45752769,118220.0,118210.0,1.73784102]
[1753018105799,0.126,118220.0,118210.0,1.90025181]
[1753018106299,0.295117,118220.0,118210.0,1.73784102]
[1753018107290,0.295117,118220.0,118210.0,1.67725702]
[1753018107485,0.126,118220.0,118210.0,1.51484623]
[1753018107691,0.126,118220.0,118210.0,1.67725702]
[1753018107892,0.295117,118220.0,118210.0,1.67725702]
[1753018108692,0.295117,118220.0,118210.0,1.73782901]
[1753018109198,0.295117,118220.0,118210.0,1.57541822]
[1753018109496,0.295117,118220.0,118210.0,1.73782901]
[1753018112306,0.295117,118220.0,118210.0,1.15094901]
[1753018112596,0.54155779,118220.0,118210.0,0.98853822]
[1753018112802,1.10199858,118220.0,118210.0,0.56716623]
[1753018113004,0.74119858,118220.0,118210.0,1.21417822]
[1753018113203,1.10199858,118220.0,118210.0,1.21417822]
[1753018113393,0.74119858,118220.0,118210.0,1.21417822]
[1753018114106,1.10199858,118220.0,118210.0,1.21417822]
[1753018114402,1.10199858,118220.0,118210.0,1.15360623]
[1753018116904,1.10199858,118220.0,118210.0,0.98647493]
[1753018118005,1.10199858,118220.0,118210.0,0.56916623]
[1753018118206,1.10199858,118220.0,118210.0,1.15556623]
[1753018121303,1.10199858,118220.0,118210.0,1.21613822]
[1753018121807,1.10199858,118220.0,118210.0,1.04700692]
[1753018122199,0.777177,118220.0,118210.0,1.04700692]
[1753018122403,1.10199858,118220.0,118210.0,1.04700692]
[1753018124006,0.74119858,118220.0,118210.0,1.04700692]
[1753018124307,1.10199858,118220.0,118210.0,1.04700692]
[1753018125203,1.10199858,118220.0,118210.0,0.46060692]
[1753018125410,1.10199858,118220.0,118210.0,0.98635493]
[1753018126303,0.777177,118220.0,118210.0,0.98635493]
[1753018126511,1.10199858,118220.0,118210.0,0.98635493]
[1753018129714,1.10199858,118220.0,118210.0,0.919264]
[1753018130117,1.10199858,118220.0,118210.0,0.332944]
[1753018130315,1.10199858,118220.0,118210.0,0.919224]
[1753018131515,1.48863779,118220.0,118210.0,1.08163479]
[1753018132013,0.90235779,118220.0,118210.0,1.08163479]
[1753018134015,0.90235779,118220.0,118210.0,0.919224]
[1753018134315,0.90235779,118220.0,118210.0,1.08163479]
[1753018134517,0.90235779,118220.0,118210.0,0.919224]
[1753018134815,0.90235779,118220.0,118210.0,1.08163479]
[1753018135117,0.90235779,118220.0,118210.0,1.25076609]
[1753018135506,0.90235779,118220.0,118210.0,0.919224]
[1753018135711,0.90235779,118220.0,118210.0,1.08163479]
[1753018136817,0.739947,118220.0,118210.0,1.08163479]
[1753018137019,0.90235779,118220.0,118210.0,0.919224]
[1753018137221,0.90235779,118220.0,118210.0,1.08163479]
[1753018137719,0.90235779,118220.0,118210.0,0.919224]
[1753018138019,1.06476858,118220.0,118210.0,1.08163479]
[1753018139319,1.09025858,118220.0,118210.0,1.08163479]
[1753018139823,1.09025858,118220.0,118210.0,1.25076609]
[1753018140023,1.09025858,118220.0,118210.0,1.31133808]
[1753018140323,1.09025858,118220.0,118210.0,1.14220678]
[1753018140716,1.09025858,118220.0,118210.0,1.31133808]
[1753018140915,1.09025858,118220.0,118210.0,1.08163479]
[1753018141117,0.765437,118220.0,118210.0,1.08163479]
[1753018141323,1.09025858,118220.0,118210.0,0.919224]
[1753018141622,1.09025858,118220.0,118210.0,1.08163479]
[1753018142126,1.09025858,118220.0,118210.0,1.25076609]
[1753018142423,0.765437,118220.0,118210.0,1.25076609]
[1753018142724,1.06476858,118220.0,118210.0,1.25076609]
[1753018142926,0.90235779,118220.0,118210.0,1.0883553]
[1753018143224,0.90235779,118220.0,118210.0,1.25076609]
[1753018143626,0.90235779,118220.0,118210.0,1.0883553]
[1753018143827,1.06476858,118220.0,118210.0,1.08163479]
[1753018148030,1.06476858,118220.0,118210.0,1.25074939]
[1753018149129,1.06476858,118220.0,118210.0,1.0883386]
[1753018149527,1.06476858,118220.0,118210.0,1.25074939]
[1753018149726,1.06476858,118220.0,118210.0,1.0883386]
[1753018149926,1.06476858,118220.0,118210.0,1.25074939]
[1753018150333,1.06476858,118220.0,118210.0,1.31132138]
[1753018150724,1.06476858,118220.0,118210.0,1.14891059]
[1753018151022,1.06476858,118220.0,118210.0,1.25074939]
[1753018153129,0.739947,118220.0,118210.0,1.25074939]
[1753018153326,1.06476858,118220.0,118210.0,1.25074939]
[1753018153942,0.342577,118220.0,118210.0,1.61154939]
[1753018154135,0.45752779,118220.0,118210.0,1.67212138]
[1753018155234,0.45752779,118220.0,118210.0,1.73846308]
[1753018155430,0.295117,118220.0,118210.0,1.73846308]
[1753018155628,0.45752779,118220.0,118210.0,1.73846308]
[1753018156736,0.45752779,118220.0,118210.0,1.57605229]
[1753018157128,0.45752779,118220.0,118210.0,1.73846308]
[1753018157530,0.45752779,118220.0,118210.0,1.57605229]
[1753018157730,0.45752779,118220.0,118210.0,1.73846308]
[1753018158036,0.45752779,118220.0,118210.0,1.67789109]
[1753018159436,0.45752779,118220.0,118210.0,1.5154803]
[1753018159737,0.45752779,118220.0,118210.0,1.67789109]
[1753018160941,0.295117,118220.0,118210.0,1.67789109]
[1753018161239,0.45752779,118220.0,118210.0,1.67789109]
[1753018161440,0.295117,118220.0,118210.0,1.5154803]
[1753018161634,0.45752779,118220.0,118210.0,1.67789109]
[1753018162640,0.49822779,118220.0,118210.0,1.31673109]
[1753018163534,0.49822779,118220.0,118210.0,1.1543203]
[1753018163832,0.49822779,118220.0,118210.0,1.31673109]
[1753018164542,0.51630789,118220.0,118210.0,1.31673109]
[1753018164839,0.49822779,118220.0,118210.0,1.31673109]
[1753018165241,0.49822779,118220.0,118210.0,1.1543203]
[1753018165442,0.49822779,118220.0,118210.0,1.31673109]
[1753018166344,0.49822779,118220.0,118210.0,1.1543203]
[1753018166546,0.49822779,118220.0,118210.0,1.31673109]
[1753018167041,0.51630775,118220.0,118210.0,1.31673109]
[1753018167247,0.52160775,118220.0,118210.0,1.31673109]
[1753018168648,0.35919696,118220.0,118210.0,1.31673109]
[1753018168852,0.50352779,118220.0,118210.0,1.31673109]
[1753018170250,0.50352779,118220.0,118210.0,0.73081109]
[1753018170446,0.50352779,118220.0,118210.0,1.31661109]
[1753018171251,0.50352779,118220.0,118210.0,1.1542003]
[1753018171449,0.50352779,118220.0,118210.0,1.31661109]
[1753018173856,0.66593858,118220.0,118210.0,1.31661109]
[1753018174648,0.66593858,118220.0,118210.0,1.37718308]
[1753018174848,0.66593858,118220.0,118210.0,1.31661109]
[1753018175356,0.66593858,118220.0,118210.0,1.1542003]
[1753018175657,0.70217858,118220.0,118210.0,1.31661109]
[1753018175854,0.49967779,118220.0,118210.0,1.67741109]
[1753018176051,0.50497779,118220.0,118210.0,1.21477229]
[1753018176254,0.66738858,118220.0,118210.0,1.31661109]
[1753018176451,0.50497779,118220.0,118210.0,1.31661109]
[1753018177363,0.50497779,118220.0,118210.0,1.1542003]
[1753018177961,0.66738858,118220.0,118210.0,1.31661109]
[1753018178261,0.50497779,118220.0,118210.0,1.37718308]
[1753018180561,0.50497779,118220.0,118210.0,1.21477229]
[1753018180763,0.50497779,118220.0,118210.0,1.37718308]
[1753018181064,0.50497779,118220.0,118210.0,1.31661109]
[1753018182163,0.50497779,118220.0,118210.0,0.73081109]
[1753018182462,0.50497779,118220.0,118210.0,1.31641109]
[1753018183264,0.54121779,118220.0,118210.0,1.31641109]
[1753018184164,0.70362858,118220.0,118210.0,1.31641109]
[1753018184562,0.70362858,118220.0,118210.0,1.1540003]
[1753018184766,0.73915858,118220.0,118210.0,1.1539603]
[1753018185067,1.09995858,118220.0,118210.0,0.918504]
[1753018186864,0.73915858,118220.0,118210.0,0.918504]
[1753018187367,1.32475858,118220.0,118210.0,0.918504]
[1753018188470,1.68555858,118220.0,118210.0,0.918504]
[1753018189971,1.32475858,118220.0,118210.0,0.918504]
[1753018190272,1.68555858,118220.0,118210.0,0.918504]
[1753018191171,1.68555858,118220.0,118210.0,0.332944]
[1753018191876,1.360737,118220.0,118210.0,0.332944]
[1753018192076,1.68555858,118220.0,118210.0,0.332944]
[1753018192873,1.703677,118220.0,118210.0,0.332944]
[1753018197880,1.37885542,118220.0,118210.0,0.332944]
[1753018198083,1.342877,118220.0,118210.0,0.332944]
[1753018199983,1.703677,118220.0,118210.0,0.332944]
[1753018200177,1.342877,118220.0,118210.0,0.332944]
[1753018202981,1.342877,118220.0,118210.0,0.49535479]
[1753018203182,1.37885542,118220.0,118210.0,0.66446939]
[1753018203384,1.703677,118220.0,118210.0,0.66446939]
[1753018203884,1.703677,118220.0,118210.0,0.332944]
[1753018204083,1.342877,118220.0,118210.0,0.49535479]
[1753018204280,0.31323542,118220.0,118210.0,0.66446939]
[1753018204486,0.45752779,118220.0,118210.0,0.66446939]
[1753018204987,0.49654779,118220.0,118210.0,0.66446939]
[1753018205285,0.53435779,118220.0,118210.0,0.66446939]
[1753018206989,0.53435779,118220.0,118210.0,0.5020586]
[1753018207184,0.53435779,118220.0,118210.0,0.66446939]
[1753018207988,0.73165858,118220.0,118210.0,0.66446939]
[1753018208188,0.74981578,118220.0,118210.0,0.5020586]
[1753018208787,0.73165858,118220.0,118210.0,0.5698792]
[1753018209184,0.406837,118220.0,118210.0,0.73228999]
[1753018209383,0.73165858,118220.0,118210.0,0.73228999]
[1753018209989,1.09245858,118220.0,118210.0,0.73228999]
[1753018210194,0.73165858,118220.0,118210.0,0.73228999]
[1753018210491,0.406837,118220.0,118210.0,0.73228999]
[1753018210692,0.73165858,118220.0,118210.0,0.73228999]
[1753018212890,1.09245858,118220.0,118210.0,0.73228999]
[1753018213286,0.73165858,118220.0,118210.0,0.73228999]
[1753018213790,0.73165858,118220.0,118210.0,0.5698792]
[1753018213993,0.73165858,118220.0,118210.0,0.73228999]
[1753018215196,0.73165858,118220.0,118210.0,0.5698792]
[1753018215397,0.73165858,118220.0,118210.0,0.73228999]
[1753018215996,0.73165858,118220.0,118210.0,0.79286198]
[1753018216189,0.73165858,118220.0,118210.0,0.63045119]
[1753018216490,0.73165858,118220.0,118210.0,0.79286198]
[1753018219299,0.74981667,118220.0,118210.0,0.73228999]
[1753018219494,0.74981667,118220.0,118210.0,0.5698792]
[1753018219696,0.74981667,118220.0,118210.0,0.73228999]
[1753018220800,0.74981667,118220.0,118210.0,0.5698792]
[1753018220998,0.74981667,118220.0,118210.0,0.73228999]
[1753018223202,0.74981667,118220.0,118210.0,0.5698792]
[1753018223402,0.74981667,118220.0,118210.0,0.73228999]
[1753018223604,0.74981667,118220.0,118210.0,0.5698792]
[1753018223803,0.74981667,118220.0,118210.0,0.73228999]
[1753018224702,0.42499509,118220.0,118210.0,0.73228999]
[1753018224902,0.74981667,118220.0,118210.0,0.73228999]
[1753018226004,0.73165858,118220.0,118210.0,0.73228999]
[1753018226396,0.73165858,118220.0,118210.0,0.5698792]
[1753018226601,0.73165858,118220.0,118210.0,0.73228999]
[1753018227306,0.73165858,118220.0,118210.0,1.1549992]
[1753018227507,0.73165858,118220.0,118210.0,1.31740999]
[1753018228201,0.73165858,118220.0,118210.0,0.73228999]
[1753018228399,0.73165858,118220.0,118210.0,1.31736999]
[1753018229998,0.72217858,118220.0,118210.0,1.31736999]
[1753018230709,0.69676858,118220.0,118210.0,1.31736999]
[1753018230910,0.53435779,118220.0,118210.0,1.31736999]
[1753018231609,0.55937779,118220.0,118210.0,1.31736999]
[1753018233111,0.53435779,118220.0,118210.0,1.31736999]
[1753018233812,0.53435779,118220.0,118210.0,1.37794198]
[1753018234612,0.53435779,118220.0,118210.0,1.31736999]
[1753018235915,0.371947,118220.0,118210.0,1.31736999]
[1753018236116,0.53435779,118220.0,118210.0,1.31736999]
[1753018236416,0.371947,118220.0,118210.0,1.31736999]
[1753018236610,0.50160779,118220.0,118210.0,1.31736999]
[1753018238118,0.339197,118220.0,118210.0,1.31736999]
[1753018238420,0.50160779,118220.0,118210.0,1.31736999]
[1753018238620,0.53342779,118220.0,118210.0,1.31736999]
[1753018238807,0.371017,118220.0,118210.0,1.31736999]
[1753018239013,0.53342779,118220.0,118210.0,1.31736999]
[1753018239618,0.371017,118220.0,118210.0,1.31736999]
[1753018239921,0.53342779,118220.0,118210.0,1.31736999]
[1753018243230,0.371017,118220.0,118210.0,1.31736999]
[1753018243530,0.53342779,118220.0,118210.0,1.31736999]
[1753018244332,0.53342779,118220.0,118210.0,1.37794198]
[1753018246030,0.5521806,118220.0,118210.0,1.31736999]
[1753018249128,0.38976981,118220.0,118210.0,1.31736999]
[1753018249338,0.5521806,118220.0,118210.0,1.31736999]
[1753018254935,0.38976981,118220.0,118210.0,1.31736999]
[1753018255135,0.5521806,118220.0,118210.0,1.31736999]
[1753018258145,0.38976981,118220.0,118210.0,1.31736999]
[1753018258345,0.5521806,118220.0,118210.0,1.31736999]
[1753018258848,0.53342779,118220.0,118210.0,1.31736999]
[1753018259147,0.371017,118220.0,118210.0,1.31736999]
[1753018259348,0.53342779,118220.0,118210.0,1.31736999]
[1753018259647,0.371017,118220.0,118210.0,1.31736999]
[1753018259847,0.50160779,118220.0,118210.0,1.31736999]
[1753018261149,0.50160779,118220.0,118210.0,1.1549592]
[1753018261340,0.47375779,118220.0,118210.0,1.31736999]
[1753018261537,0.295117,118220.0,118210.0,1.67816999]
[1753018261744,0.45752779,118220.0,118210.0,1.67816999]
[1753018261947,0.2951003,118220.0,118210.0,1.90115277]
[1753018263746,0.2951003,118220.0,118210.0,1.84058078]
[1753018264149,0.126,118220.0,118210.0,1.84058078]
[1753018264347,0.126,118220.0,118210.0,2.24116976]
[1753018264542,0.126,118220.0,118210.0,1.90116976]
[1753018266654,0.11562,118220.0,118210.0,2.22116976]
[1753018266858,0.04467,118220.0,118210.0,2.22116976]
[1753018267047,0.1690977,118230.0,118220.0,0.2080303]
[1753018267248,0.12,118230.0,118220.0,0.96869924]
[1753018267648,0.289086,118230.0,118220.0,0.96869924]
[1753018268458,0.322546,118230.0,118220.0,0.96869924]
[1753018268652,0.325546,118230.0,118220.0,0.96869924]
[1753018269255,0.325546,118230.0,118220.0,1.02928822]
[1753018269659,0.328546,118230.0,118220.0,1.02928822]
[1753018270159,0.328546,118230.0,118220.0,1.24064222]
[1753018270861,0.305096,118230.0,118220.0,1.24064222]
[1753018271860,0.305096,118230.0,118220.0,1.24909093]
[1753018272861,0.295086,118230.0,118220.0,1.24909093]
[1753018274257,0.305096,118230.0,118220.0,1.24909093]
[1753018275461,0.303096,118230.0,118220.0,1.24909093]
[1753018276667,0.300096,118230.0,118220.0,1.25009093]
[1753018277267,0.299096,118230.0,118220.0,1.25009093]
[1753018278670,0.299096,118230.0,118220.0,1.60009093]
[1753018279073,0.299096,118230.0,118220.0,1.25009093]
[1753018280769,0.322546,118230.0,118220.0,1.25009093]
[1753018281581,0.359086,118230.0,118220.0,1.25009093]
[1753018281884,0.56088679,118230.0,118220.0,1.41693166]
[1753018282082,0.56088679,118230.0,118220.0,1.21854245]
[1753018282285,0.398476,118230.0,118220.0,1.21854245]
[1753018282485,0.398476,118230.0,118220.0,1.05613166]
[1753018282686,0.56088679,118230.0,118220.0,1.21854245]
[1753018284079,0.56088679,118230.0,118220.0,1.58774153]
[1753018284284,0.56088679,118230.0,118220.0,1.25056153]
[1753018285182,0.398476,118230.0,118220.0,1.25056153]
[1753018285382,0.56088679,118230.0,118220.0,1.25056153]
[1753018285578,0.398476,118230.0,118220.0,1.25056153]
[1753018285774,0.56088679,118230.0,118220.0,1.25056153]
[1753018286685,0.398476,118230.0,118220.0,1.25056153]
[1753018286986,0.56088679,118230.0,118220.0,1.25056153]
[1753018287180,0.56088679,118230.0,118220.0,1.41297232]
[1753018287383,0.56088679,118230.0,118220.0,1.25056153]
[1753018288381,0.398476,118230.0,118220.0,1.25056153]
[1753018288582,0.56088679,118230.0,118220.0,1.44895074]
[1753018288888,0.56088679,118230.0,118220.0,1.25056153]
[1753018289889,0.56088679,118230.0,118220.0,1.61136153]
[1753018290088,0.56088679,118230.0,118220.0,1.44895074]
[1753018290286,0.56088679,118230.0,118220.0,1.61136153]
[1753018290488,0.56088679,118230.0,118220.0,1.44895074]
[1753018290689,0.56088679,118230.0,118220.0,1.61136153]
[1753018290988,0.5796666,118230.0,118220.0,1.44895074]
[1753018291286,0.5796666,118230.0,118220.0,1.61136153]
[1753018292789,0.5796666,118230.0,118220.0,1.60296245]
[1753018293785,0.41725581,118230.0,118220.0,1.24216245]
[1753018293985,0.5796666,118230.0,118220.0,1.25060631]
[1753018294186,0.5796666,118230.0,118220.0,1.61140631]
[1753018296691,0.5796666,118230.0,118220.0,1.67199529]
[1753018297692,0.41725581,118230.0,118220.0,1.67199529]
[1753018297992,0.5796666,118230.0,118220.0,1.67199529]
[1753018298389,0.5796666,118230.0,118220.0,1.31119529]
[1753018298794,0.5796666,118230.0,118220.0,1.25060631]
[1753018298996,0.5796666,118230.0,118220.0,1.61140631]
[1753018299494,0.5796666,118230.0,118220.0,1.25060631]
[1753018301298,0.5796666,118230.0,118220.0,1.25092631]
[1753018303294,0.41725581,118230.0,118220.0,1.25092631]
[1753018303500,0.5796666,118230.0,118220.0,1.25092631]
[1753018304594,0.5796666,118230.0,118220.0,1.08851552]
[1753018304796,0.5796666,118230.0,118220.0,1.25092631]
[1753018306096,0.41725581,118230.0,118220.0,1.08851552]
[1753018306400,0.5796666,118230.0,118220.0,1.25092631]
[1753018307197,0.5796666,118230.0,118220.0,1.24248245]
[1753018307899,0.5796666,118230.0,118220.0,1.25100799]
[1753018309199,0.41725581,118230.0,118220.0,1.25100799]
[1753018309505,0.56088679,118230.0,118220.0,1.25096799]
[1753018310105,0.398476,118230.0,118220.0,1.25096799]
[1753018310403,0.56088679,118230.0,118220.0,1.25096799]
[1753018311106,0.56088679,118230.0,118220.0,1.0885572]
[1753018311309,0.56088679,118230.0,118220.0,1.22734799]
[1753018311600,0.72329758,118230.0,118220.0,0.24577136]
[1753018311806,0.56088679,118230.0,118220.0,0.81366136]
[1753018312004,1.14504679,118230.0,118220.0,0.212354]
[1753018312608,1.50584679,118230.0,118220.0,0.212354]
[1753018314111,1.50584679,118230.0,118220.0,0.25781363]
[1753018318612,1.50584679,118230.0,118220.0,0.212354]
[1753018319897,1.51444711,118230.0,118220.0,0.212354]
[1753018321610,1.6768579,118230.0,118220.0,0.212354]
[1753018321809,1.53182334,118230.0,118220.0,0.212354]
[1753018322210,1.69423413,118230.0,118220.0,0.212354]
[1753018325010,2.05503413,118230.0,118220.0,0.212354]
[1753018326716,2.05503413,118230.0,118220.0,0.210354]
[1753018327819,1.89262334,118230.0,118220.0,0.210354]
[1753018328014,1.89271408,118230.0,118220.0,0.210354]
[1753018329408,1.17111408,118230.0,118220.0,0.210354]
[1753018329707,1.89271408,118230.0,118220.0,0.210354]
[1753018330715,2.05512487,118230.0,118220.0,0.210354]
[1753018331210,1.89271408,118230.0,118220.0,0.210354]
[1753018332920,1.30855408,118230.0,118220.0,0.210354]
[1753018333215,1.89275408,118230.0,118220.0,0.210354]
[1753018333716,1.30855408,118230.0,118220.0,0.210354]
[1753018334014,1.89271408,118230.0,118220.0,0.210354]
[1753018340219,1.89271408,118230.0,118220.0,0.3794548]
[1753018340516,1.89271408,118230.0,118220.0,0.4335648]
[1753018340920,1.88411376,118230.0,118220.0,0.4335648]
[1753018341116,1.88411376,118230.0,118220.0,0.264464]
[1753018341320,1.88411376,118230.0,118220.0,0.4505048]
[1753018342313,1.88411376,118230.0,118220.0,0.249544]
[1753018343422,1.88411376,118230.0,118220.0,0.4186448]
[1753018343621,1.88411376,118230.0,118220.0,0.232604]
[1753018344114,1.72170297,118230.0,118220.0,0.232604]
[1753018344314,1.88411376,118230.0,118220.0,0.232604]
[1753018345021,1.88411376,118230.0,118220.0,0.4017048]
[1753018345317,1.88411376,118230.0,118220.0,0.232604]
[1753018346524,1.88411376,118230.0,118220.0,0.4017048]
[1753018348624,1.72170297,118230.0,118220.0,0.4017048]
[1753018348824,1.52331376,118230.0,118220.0,0.4017048]
[1753018349028,1.52331376,118230.0,118220.0,0.4330848]
[1753018350526,1.52331376,118230.0,118220.0,0.263984]
[1753018350825,1.52331376,118230.0,118220.0,0.232604]
[1753018351127,1.52331376,118230.0,118220.0,0.4017048]
[1753018354525,1.52327376,118230.0,118220.0,0.56411559]
[1753018354729,1.36086297,118230.0,118220.0,0.59549559]
[1753018354935,1.16247376,118230.0,118220.0,0.63493559]
[1753018355234,1.14500679,118230.0,118220.0,0.63493559]
[1753018356724,0.982596,118230.0,118220.0,0.63493559]
[1753018357031,1.14500679,118230.0,118220.0,0.63493559]
[1753018359032,1.14500679,118230.0,118220.0,0.61125559]
[1753018361327,1.14500679,118230.0,118220.0,0.4488448]
[1753018361532,1.14496679,118230.0,118220.0,0.61125559]
[1753018362137,1.14496679,118230.0,118220.0,0.63493559]
[1753018362728,1.14496679,118230.0,118220.0,0.61125559]
[1753018363340,1.14496679,118230.0,118220.0,0.4488448]
[1753018363536,1.14496679,118230.0,118220.0,0.61125559]
[1753018364743,1.14496679,118230.0,118220.0,0.65668688]
[1753018366731,1.14492679,118230.0,118220.0,0.65668688]
[1753018366937,1.14492679,118230.0,118220.0,0.61125559]
[1753018367336,1.14492679,118230.0,118220.0,0.63493559]
[1753018367839,0.56088679,118230.0,118220.0,0.63493559]
[1753018368040,1.14492679,118230.0,118220.0,0.63493559]
[1753018368542,1.14492679,118230.0,118220.0,0.4488448]
[1753018368742,1.14492679,118230.0,118220.0,0.61125559]